{"text_format":"1","workbook":"xlsx","n_sheets":3,"sheets":["Disclaimer & uitleg model","CO2-berekening ","Parameters & aannames"],"not_rendered":{"charts":1,"images":11,"macros":1,"external_links":0,"defined_names":34,"comments":0,"pivot_tables":0},"unopened":[],"bounds":{"document_bytes":16777216,"sheet_cells":100000,"rows_first":2000,"rows_last":500,"rows_between":2000,"halvings":0,"cell_chars":16384,"cell_head_chars":4096},"cells_cut":0,"cells_raw":0,"read":"whole","date_system":"1900"}

{"sheet":"Disclaimer & uitleg model","index":0,"n_rows":21,"n_cols":12,"rows_kept":21,"cut":false,"hidden":false,"merged":[]}
[]
[]
[]
[]
[]
[]
[]
[]
[]
[]
[]
[]
[]
[]
[]
[]
[]
[]
[]
[]
[null,null,null,null,null,null,null,null,null,null,null,"voorbeeld:"]

{"sheet":"CO2-berekening ","index":1,"n_rows":65,"n_cols":34,"rows_kept":65,"cut":false,"hidden":false,"merged":[]}
[]
[null,null,"Berekening CO2-emissie geothermie in warmtenetwerk"]
[]
[]
[null,null,null,"Geothermiebron",null,null,null,null,"Evt. andere bronnen",null,null,null,null,null,null,"Warmtepomp",null,null,null,null,null,"Bijstook",null,null,null,"Warmteverlies",null,null,null,"Warmtenet"]
[]
[null,null,null,"Aandeel in warmtevraag (in %):",0.8,null,null,null,0,null,0,null,0,null,null,null,0,null,null,null,0.2,null,0,null,null,null,0.2]
[null,null,null,null,null,null,null,null,null,null,null,null,null,null,null,null,"COP:"]
[null,null,null,"Totaal geproduceerde energie",337475,"GJth",null,null,"bron 1",null,"bron 2",null,"bron 3",null,null,null,5,null,null,null,"bijstook 1",null,"bijstook 2"]
[null,null,null,"Elektricteitsverbruik (1 of 2 invullen)",null,null,null,null,"Aardgasketel (NL)",null,"Biomassa, uit NL",null,"AVI - fortfaitair 2020",null,null,null,null,null,null,null,"Aardgasketel (NL)",null,"Biomassa, uit NL"]
[null,null,null,"1) Totaal geconsumeerde elektriciteit",21545,"GJe"]
[null,null,null,"2) COP"]
[null,null,null,"Productietemperatuur",82,"°C"]
[null,null,null,"Retourtemperatuur",35,"°C"]
[null,null,null,"Draaiuren",6657,"uur/jaar"]
[null,null,null,"Debiet",213,"m3/h"]
[null,null,null,"Gem. bijvangst",0.1,"Nm3/m3"]
[]
[]
[]
[]
[]
[]
[]
[]
[]
[]
[null,null,{"$f":"IF(aandeel_bron+aandeel_bron1+aandeel_bron2+aandeel_bron3+aandeel_WP+aandeel_piek1+aandeel_piek2>1,\"Let op! Aandeel in warmtevraag > 100%\",\"\")","v":""}]
[null,null,{"$f":"IF(aandeel_bron+aandeel_bron1+aandeel_bron2+aandeel_bron3+aandeel_WP+aandeel_piek1+aandeel_piek2<1,\"Let op! Aandeel in warmtevraag < 100%\",\"\")","v":""}]
[]
[]
[]
[]
[null,null,null,null,null,null,null,null,null,null,null,null,null,null,null,null,null,null,null,null,null,null,"Emissie bron",null,null,null,null,null,null,2015,2020,2025,2030,"20XX"]
[null,null,null,null,null,null,null,null,null,null,null,null,null,null,null,null,null,null,null,null,null,null,"Emissie pompen",null,null,null,null,null,"kg",{"$f":"IF(AND(GT_elec=\"\",COP_GT=\"\"),\"vul elec verbruik of COP in\",IF(GT_elec=\"\",((GT_prod/COP_GT)*CO2_landelijknet_2015*(1/rendement_primairfossiel_2015)),IF(COP_GT=\"\",GT_elec*CO2_landelijknet_2015*(1/rendement_primairfossiel_2015),0)))","v":3171902.777777778},{"$f":"IF(AND(GT_elec=\"\",COP_GT=\"\"),\"vul elec verbruik of COP in\",IF(GT_elec=\"\",((GT_prod/COP_GT)*CO2_landelijknet_2020*(1/rendement_primairfossiel_2020)),IF(COP_GT=\"\",GT_elec*CO2_landelijknet_2020*(1/rendement_primairfossiel_2020),0)))","v":1795416.6666666665},{"$f":"IF(AND(GT_elec=\"\",COP_GT=\"\"),\"vul elec verbruik of COP in\",IF(GT_elec=\"\",((GT_prod/COP_GT)*CO2_landelijknet_2025*(1/rendement_primairfossiel_2025)),IF(COP_GT=\"\",GT_elec*CO2_landelijknet_2025*(1/rendement_primairfossiel_2025),0)))","v":1376486.1111111112},{"$f":"IF(AND(GT_elec=\"\",COP_GT=\"\"),\"vul elec verbruik of COP in\",IF(GT_elec=\"\",((GT_prod/COP_GT)*CO2_landelijknet_2030*(1/rendement_primairfossiel_2030)),IF(COP_GT=\"\",GT_elec*CO2_landelijknet_2030*(1/rendement_primairfossiel_2030),0)))","v":718166.66666666663},{"$f":"IF(AND(GT_elec=\"\",COP_GT=\"\"),\"vul elec verbruik of COP in\",IF(GT_elec=\"\",((GT_prod/COP_GT)*CO2_landelijknet_20XX*(1/rendement_primairfossiel_20XX)),IF(COP_GT=\"\",GT_elec*CO2_landelijknet_20XX*(1/rendement_primairfossiel_20XX),0)))","v":0}]
[null,null,null,null,null,null,null,null,null,null,null,null,null,null,null,null,null,null,null,null,null,null,"Branstofinzet in ketel (bijvangst)",null,null,null,null,null,"GJp",{"$f":"((debiet*bijvangst)*energy_aardgas)*draaiuren","v":4981.4394241500004},{"$f":"((debiet*bijvangst)*energy_aardgas)*draaiuren","v":4981.4394241500004},{"$f":"((debiet*bijvangst)*energy_aardgas)*draaiuren","v":4981.4394241500004},{"$f":"((debiet*bijvangst)*energy_aardgas)*draaiuren","v":4981.4394241500004},{"$f":"((debiet*bijvangst)*energy_aardgas)*draaiuren","v":4981.4394241500004}]
[null,null,null,null,null,null,null,null,null,null,null,null,null,null,null,null,null,null,null,null,null,null,"Warmteproductie bijvangst",null,null,null,null,null,"GJth",{"$f":"AD36*rendement_gasketel","v":3985.1515393200007},{"$f":"AE36*rendement_gasketel","v":3985.1515393200007},{"$f":"AF36*rendement_gasketel","v":3985.1515393200007},{"$f":"AG36*rendement_gasketel","v":3985.1515393200007},{"$f":"AH36*rendement_gasketel","v":3985.1515393200007}]
[null,null,null,null,null,null,null,null,null,null,null,null,null,null,null,null,null,null,null,null,null,null,"Emissie bijvangst",null,null,null,null,null,"kg",{"$f":"AD36*emissiefactor_aardgas","v":253057.12274682001},{"$f":"AE36*emissiefactor_aardgas","v":253057.12274682001},{"$f":"AF36*emissiefactor_aardgas","v":253057.12274682001},{"$f":"AG36*emissiefactor_aardgas","v":253057.12274682001},{"$f":"AH36*emissiefactor_aardgas","v":253057.12274682001}]
[null,null,null,null,null,null,null,null,null,null,null,null,null,null,null,null,null,null,null,null,null,null,"CO2 factor pompen",null,null,null,null,null,"kg/GJ",{"$f":"AD35/(GT_prod+AD37)","v":9.2892326190294128},{"$f":"AE35/(GT_prod+AE37)","v":5.2580561994506105},{"$f":"AF35/(GT_prod+AF37)","v":4.0311764195788022},{"$f":"AG35/(GT_prod+AG37)","v":2.1032224797802441},{"$f":"AH35/(GT_prod+AH37)","v":0}]
[null,null,null,null,null,null,null,null,null,null,null,null,null,null,null,null,null,null,null,null,null,null,"CO2 factor bijvangst",null,null,null,null,null,"kg/GJ",{"$f":"AD38/(GT_prod+AD37)","v":0.74110294160541257},{"$f":"AE38/(GT_prod+AE37)","v":0.74110294160541257},{"$f":"AF38/(GT_prod+AF37)","v":0.74110294160541257},{"$f":"AG38/(GT_prod+AG37)","v":0.74110294160541257},{"$f":"AH38/(GT_prod+AH37)","v":0.74110294160541257}]
[null,null,null,null,null,null,null,null,null,null,null,null,null,null,null,null,null,null,null,null,null,null,"CO2 emissie totaal bron",null,null,null,null,null,"kg/GJ",{"$f":"AD39+AD40","v":10.030335560634825},{"$f":"AE39+AE40","v":5.9991591410560234},{"$f":"AF39+AF40","v":4.7722793611842151},{"$f":"AG39+AG40","v":2.8443254213856566},{"$f":"AH39+AH40","v":0.74110294160541257}]
[]
[null,null,null,null,null,null,null,null,null,null,null,null,null,null,null,null,null,null,null,null,null,null,"Emissie warmtenet",null,null,null,null,null,null,2015,2020,2025,2030,"20XX"]
[null,null,null,null,null,null,null,null,null,null,null,null,null,null,null,null,null,null,null,null,null,null,"Emissie geothermiebron",null,null,null,null,null,"kg/GJ",{"$f":"aandeel_bron*AD41","v":8.0242684485078595},{"$f":"aandeel_bron*AE41","v":4.7993273128448193},{"$f":"aandeel_bron*AF41","v":3.8178234889473721},{"$f":"aandeel_bron*AG41","v":2.2754603371085254},{"$f":"aandeel_bron*AH41","v":0.59288235328433003}]
[null,null,null,null,null,null,null,null,null,null,null,null,null,null,null,null,null,null,null,null,null,null,"Emissie geothermiebron - pompen",null,null,null,null,null,"kg/GJ",{"$f":"aandeel_bron*AD39","v":7.4313860952235302},{"$f":"aandeel_bron*AE39","v":4.2064449595604883},3.224941135663042,1.6825779838241954,0]
[null,null,null,null,null,null,null,null,null,null,null,null,null,null,null,null,null,null,null,null,null,null,"Emissie geothermiebron - bijvangst",null,null,null,null,null,"kg/GJ",{"$f":"aandeel_bron*AD40","v":0.59288235328433003},0.59288235328433003,0.59288235328433003,0.59288235328433003,0.59288235328433003]
[null,null,null,null,null,null,null,null,null,null,null,null,null,null,null,null,null,null,null,null,null,null,{"$f":"\"Emissie \"&I10","v":"Emissie Aardgasketel (NL)"},null,null,null,null,null,"kg/GJ",{"$f":"VLOOKUP($I$10,'Parameters & aannames'!$C$26:$G$42,5,0)*aandeel_bron1","v":0},{"$f":"VLOOKUP($I$10,'Parameters & aannames'!$C$26:$G$42,5,0)*aandeel_bron1","v":0},{"$f":"VLOOKUP($I$10,'Parameters & aannames'!$C$26:$G$42,5,0)*aandeel_bron1","v":0},{"$f":"VLOOKUP($I$10,'Parameters & aannames'!$C$26:$G$42,5,0)*aandeel_bron1","v":0},{"$f":"VLOOKUP($I$10,'Parameters & aannames'!$C$26:$G$42,5,0)*aandeel_bron1","v":0}]
[null,null,null,null,null,null,null,null,null,null,null,null,null,null,null,null,null,null,null,null,null,null,{"$f":"\"Emissie \"&K10","v":"Emissie Biomassa, uit NL"},null,null,null,null,null,"kg/GJ",{"$f":"VLOOKUP($K$10,'Parameters & aannames'!$C$26:$G$42,5,0)*aandeel_bron2","v":0},{"$f":"VLOOKUP($K$10,'Parameters & aannames'!$C$26:$G$42,5,0)*aandeel_bron2","v":0},{"$f":"VLOOKUP($K$10,'Parameters & aannames'!$C$26:$G$42,5,0)*aandeel_bron2","v":0},{"$f":"VLOOKUP($K$10,'Parameters & aannames'!$C$26:$G$42,5,0)*aandeel_bron2","v":0},{"$f":"VLOOKUP($K$10,'Parameters & aannames'!$C$26:$G$42,5,0)*aandeel_bron2","v":0}]
[null,null,null,null,null,null,null,null,null,null,null,null,null,null,null,null,null,null,null,null,null,null,{"$f":"\"Emissie \"&M10","v":"Emissie AVI - fortfaitair 2020"},null,null,null,null,null,"kg/GJ",{"$f":"VLOOKUP($M$10,'Parameters & aannames'!$C$26:$G$42,5,0)*aandeel_bron3","v":0},{"$f":"VLOOKUP($M$10,'Parameters & aannames'!$C$26:$G$42,5,0)*aandeel_bron3","v":0},{"$f":"VLOOKUP($M$10,'Parameters & aannames'!$C$26:$G$42,5,0)*aandeel_bron3","v":0},{"$f":"VLOOKUP($M$10,'Parameters & aannames'!$C$26:$G$42,5,0)*aandeel_bron3","v":0},{"$f":"VLOOKUP($M$10,'Parameters & aannames'!$C$26:$G$42,5,0)*aandeel_bron3","v":0}]
[null,null,null,null,null,null,null,null,null,null,null,null,null,null,null,null,null,null,null,null,null,null,"Emissie WP",null,null,null,null,null,"kg/GJ",{"$f":"aandeel_WP*(1/rendement_primairfossiel_2015)*CO2_landelijknet_2015*(1/COP_WP)","v":0},{"$f":"aandeel_WP*(1/rendement_primairfossiel_2015)*CO2_landelijknet_2015*(1/COP_WP)","v":0},{"$f":"aandeel_WP*(1/rendement_primairfossiel_2015)*CO2_landelijknet_2015*(1/COP_WP)","v":0},{"$f":"aandeel_WP*(1/rendement_primairfossiel_2015)*CO2_landelijknet_2015*(1/COP_WP)","v":0},{"$f":"aandeel_WP*(1/rendement_primairfossiel_2015)*CO2_landelijknet_2015*(1/COP_WP)","v":0}]
[null,null,null,null,null,null,null,null,null,null,null,null,null,null,null,null,null,null,null,null,null,null,{"$f":"\"Emissie bijstook \"&U10","v":"Emissie bijstook Aardgasketel (NL)"},null,null,null,null,null,"kg/GJ",{"$f":"VLOOKUP($U$10,'Parameters & aannames'!$C$26:$G$42,5,0)*aandeel_piek1","v":12.7},{"$f":"VLOOKUP($U$10,'Parameters & aannames'!$C$26:$G$42,5,0)*aandeel_piek1","v":12.7},{"$f":"VLOOKUP($U$10,'Parameters & aannames'!$C$26:$G$42,5,0)*aandeel_piek1","v":12.7},{"$f":"VLOOKUP($U$10,'Parameters & aannames'!$C$26:$G$42,5,0)*aandeel_piek1","v":12.7},{"$f":"VLOOKUP($U$10,'Parameters & aannames'!$C$26:$G$42,5,0)*aandeel_piek1","v":12.7}]
[null,null,null,null,null,null,null,null,null,null,null,null,null,null,null,null,null,null,null,null,null,null,{"$f":"\"Emissie bijstook \"&W10","v":"Emissie bijstook Biomassa, uit NL"},null,null,null,null,null,"kg/GJ",{"$f":"VLOOKUP($W$10,'Parameters & aannames'!$C$26:$G$42,5,0)*aandeel_piek2","v":0},{"$f":"VLOOKUP($W$10,'Parameters & aannames'!$C$26:$G$42,5,0)*aandeel_piek2","v":0},{"$f":"VLOOKUP($W$10,'Parameters & aannames'!$C$26:$G$42,5,0)*aandeel_piek2","v":0},{"$f":"VLOOKUP($W$10,'Parameters & aannames'!$C$26:$G$42,5,0)*aandeel_piek2","v":0},{"$f":"VLOOKUP($W$10,'Parameters & aannames'!$C$26:$G$42,5,0)*aandeel_piek2","v":0}]
[null,null,null,null,null,null,null,null,null,null,null,null,null,null,null,null,null,null,null,null,null,null,"Emissie netverlies",null,null,null,null,null,"kg/GJ",{"$f":"aandeel_verlies*AD54","v":5.1810671121269642},{"$f":"aandeel_verlies*AE54","v":4.3748318282112049},{"$f":"aandeel_verlies*AF54","v":4.1294558722368429},{"$f":"aandeel_verlies*AG54","v":3.7438650842771311},{"$f":"aandeel_verlies*AH54","v":3.3232205883210817}]
[null,null,null,null,null,null,null,null,null,null,null,null,null,null,null,null,null,null,null,null,null,null,"Totaal",null,null,null,null,null,"kg/GJ",{"$f":"(AD44+AD47+AD48+AD49+AD50+AD51+AD52)/(1-aandeel_verlies)","v":25.905335560634821},{"$f":"(AE44+AE47+AE48+AE49+AE50+AE51+AE52)/(1-aandeel_verlies)","v":21.874159141056023},{"$f":"(AF44+AF47+AF48+AF49+AF50+AF51+AF52)/(1-aandeel_verlies)","v":20.647279361184214},{"$f":"(AG44+AG47+AG48+AG49+AG50+AG51+AG52)/(1-aandeel_verlies)","v":18.719325421385655},{"$f":"(AH44+AH47+AH48+AH49+AH50+AH51+AH52)/(1-aandeel_verlies)","v":16.616102941605408}]
[null,null,null,null,null,null,null,null,null,null,null,null,null,null,null,null,null,null,null,null,null,null,"Doelstelling Klimaatakkoord",null,null,null,null,null,null,{"$f":"'Parameters & aannames'!$D$45","v":18.899999999999999},{"$f":"'Parameters & aannames'!$D$45","v":18.899999999999999},{"$f":"'Parameters & aannames'!$D$45","v":18.899999999999999},{"$f":"'Parameters & aannames'!$D$45","v":18.899999999999999},{"$f":"'Parameters & aannames'!$D$45","v":18.899999999999999}]
[null,null,null,null,null,null,null,null,null,null,null,null,null,null,null,null,null,null,null,null,null,null,"Doelstelling Warmtewet",null,null,null,null,null,null,25,25,25,25,25]
[null,null,null,null,null,null,null,null,null,null,null,null,null,null,null,null,null,null,null,null,null,null,"Emissie geothermiebron - pompen",null,null,null,null,null,null,{"$f":"AD45/AD$54","v":0.28686700767991985},0.19230201867121521,0.1561920618813227,8.9884541560560485E-2,0]
[null,null,null,null,null,null,null,null,null,null,null,null,null,null,null,null,null,null,null,null,null,null,"Emissie geothermiebron - bijvangst",null,null,null,null,null,null,2.2886495791440781E-2,2.7104235159903265E-2,2.8714793020087542E-2,3.1672207194336131E-2,3.568119163488085E-2]
[null,null,null,null,null,null,null,null,null,null,null,null,null,null,null,null,null,null,null,null,null,null,{"$f":"\"Emissie \"&I10","v":"Emissie Aardgasketel (NL)"},null,null,null,null,null,null,0,0,0,0,0]
[null,null,null,null,null,null,null,null,null,null,null,null,null,null,null,null,null,null,null,null,null,null,{"$f":"\"Emissie \"&K10","v":"Emissie Biomassa, uit NL"},null,null,null,null,null,null,0,0,0,0,0]
[null,null,null,null,null,null,null,null,null,null,null,null,null,null,null,null,null,null,null,null,null,null,{"$f":"\"Emissie \"&M10","v":"Emissie AVI - fortfaitair 2020"},null,null,null,null,null,null,0,0,0,0,0]
[null,null,null,null,null,null,null,null,null,null,null,null,null,null,null,null,null,null,null,null,null,null,"Emissie WP",null,null,null,null,null,null,0,0,0,0,0]
[null,null,null,null,null,null,null,null,null,null,null,null,null,null,null,null,null,null,null,null,null,null,{"$f":"\"Emissie bijstook \"&U10","v":"Emissie bijstook Aardgasketel (NL)"},null,null,null,null,null,null,0.49024649652863944,0.58059374616888149,0.6150931450985897,0.67844325124510341,0.76431880836511934]
[null,null,null,null,null,null,null,null,null,null,null,null,null,null,null,null,null,null,null,null,null,null,{"$f":"\"Emissie bijstook \"&W10","v":"Emissie bijstook Biomassa, uit NL"},null,null,null,null,null,null,0,0,0,0,0]
[null,null,null,null,null,null,null,null,null,null,null,null,null,null,null,null,null,null,null,null,null,null,"Emissie netverlies",null,null,null,null,null,null,0.2,0.2,0.2,0.2,0.2]

{"sheet":"Parameters & aannames","index":2,"n_rows":139,"n_cols":13,"rows_kept":139,"cut":false,"hidden":false,"merged":[]}
[]
[null,null,"Parameters & aannames"]
[]
[null,null,"Conversie",null,null,null,null,null,null,null,"Referentie","Opmerkingen"]
[]
[null,null,"aardgas - onderwaarde",null,31.65,"MJ/m3 =",{"$f":"E6/1000","v":3.1649999999999998E-2},"GJ/m3",null,null,"Zijlema (2020)","calorische onderwaarde aardgas"]
[null,null,"aardgas - bovenwaarde",null,{"$f":"E6*E8","v":35.131500000000003},"MJ/m3 =",{"$f":"E7/1000","v":3.5131500000000003E-2},"GJ/m3",null,null,"Zijlema (2020)","calorische bovenwaarde aardgas"]
[null,null,"omrekenfactor bovenwaarde/onderwaarde",null,1.1100000000000001,null,null,null,null,null,"RVO (2019, update 2020)","bijlage 1"]
[]
[null,null,null,null,1,"kg/kWh =",277.77777777777777,"kg/GJ"]
[]
[]
[null,null,"Emissiefactoren elektriciteit"]
[]
[null,null,null,null,2015,2020,2025,2030,"20XX"]
[null,null,"Emissiefactor elektriciteit","kg/kWh",0.53,0.3,0.23,0.12,0,null,"Schoots & Hammingh (2020)","Integrale methode, 2020: 2015 & 2020 uit KEV 2019, p.234 2025&2030 uit KEV 2020, p. 181"]
[null,null,"Rendement op primair fossiel",null,0.49099999999999999,0.78,0.96099999999999997,1.532,1,null,"Schoots & Hammingh (2020)","Integrale methode, 2020: Klimaat- en Energieverkenning 2019, p.234 2025&2030 uit KEV 2020, p. 181"]
[null,null,"CO2 emissiefactor landelijk net","kg/GJp",{"$f":"E16*1000*E17/3.6","v":72.286111111111111},{"$f":"F16*1000*F17/3.6","v":65},61.397222222222219,51.066666666666663,0,null,"Schoots & Hammingh (2020)","volgens berekening harmelink 7.1"]
[null,null,"Emissiefactor aardgas (bovenwaarde)","kg/GJ ",50.8,null,null,null,null,null,"NEN (2020)","NTA8800"]
[null,null,"Rendement gasketel (bovenwaarde)","%",0.8,null,null,null,null,null,"NEN (2015)","NEN7125"]
[]
[]
[null,null,"Emissiefactoren brandstof"]
[]
[null,null,null,"CO2 emissiefactor [kg/GJ]","Rendement/COP [-]","Primaire energiefactor (NTA8800)","Emissiefactor geproduceerde warmte",null,null,null,"Bron:"]
[null,null,"Aardgasketel (NL)",50.8,0.8,1,{"$f":"emissiefactor_aardgas/rendement_gasketel","v":63.499999999999993},null,null,null,"NEN (2020), rendement 80% uit NEN (2015)"]
[null,null,"Aftapwarmte/WKK MD (aardgas) 2020 ",null,null,null,13,null,null,null,"Greenvis (2020)"]
[null,null,"Aftapwarmte/WKK MD (aardgas) 2030 ",null,null,null,5,null,null,null,"Greenvis (2020)"]
[null,null,"Aquathermie met WP 2020 ",null,null,null,21,null,null,null,"Greenvis (2020)"]
[null,null,"Aquathermie met WP 2030 ",null,null,null,6,null,null,null,"Greenvis (2020)"]
[null,null,"AVI - fortfaitair 2020",null,null,null,9.84,null,null,null,"Greenvis (2020)"]
[null,null,"AVI - fortfaitair 2030 ",null,null,null,4.17,null,null,null,"Greenvis (2020)"]
[null,null,"Biogas ",0,0.55000000000000004,null,0,null,null,null,"NEN (2020) ","rendement uit MRA studie"]
[null,null,"Biomassa, geen emissie",0,null,0,0,null,null,null,"NEN (2020) "]
[null,null,"Biomassa, uit NL",4.8,1.08,null,{"$f":"D35/E35","v":4.4444444444444438},null,null,null,"RHDHV (2020)"]
[null,null,"Biomassa, uit VS, pulphout",15.5,1.01,null,{"$f":"D36/E36","v":15.346534653465346},null,null,null,"RHDHV (2020)"]
[null,null,"Biomassa, uit VS, resthout ",11.5,1.01,null,{"$f":"D37/E37","v":11.386138613861386},null,null,null,"RHDHV (2020)"]
[null,null,"Restwarmte 2020",null,null,null,8.33,null,null,null,"Greenvis (2020)"]
[null,null,"Restwarmte 2030",null,null,null,2.5,null,null,null,"Greenvis (2020)"]
[null,null,"Russisch aardgas ",63.7,0.89,null,{"$f":"D40/E40","v":71.573033707865164},null,null,null,"RHDHV (2020)"]
[null,null,"STEG ",null,null,null,18.3,null,null,null,"CE Delft (2016)","data kengetallen uit 2015."]
[null,null,"Bron - eigen invulling",null,null,null,null,null,null,null,"vul hier zelf een emissiefactor in"]
[]
[null,null,"Doelstelling Warmtewet",25,"kg/GJ"]
[null,null,"Doelstelling Klimaatakkoord",18.899999999999999,"kg/GJ"]
[]
[]
[null,null,"Referenties"]
[null,null,"Zijlema (2020). Nederlandse lijst van energiedragers en standaard CO2 emissiefactoren, versie januari 2020. RVO."]
[null,null,"RVO (2019, update 2020). Duurzaamheid van warmte- & koudelevering. Voorstel voor inhoud van de rapportageverplichting onder de Warmtewet. Eindrapport versie 3."]
[null,null,"NEN (2015). NEN 7125. Energieprestatienorm voor maatregelen op gebiedsniveau (EMG) – Bepalingsmethode."]
[null,null,"NEN (2020). NTA 8800 (nl). Energieprestatie van gebouwen – Bepalingsmethode. "]
[null,null,"Schoots, K. & P. Hammingh (2020), Klimaat- en Energieverkenning 2020, Den Haag: Planbureau voor de Leefomgeving."]
[null,null,"Schoots, K. & P. Hammingh (2019), Klimaat- en Energieverkenning 2019, Den Haag: Planbureau voor de Leefomgeving."]
[null,null,"HaskoningDHV Nederland B.V. (2020). Warmte uit aardgas of biomassa? Referentie: BH1516I&BRP001F01. https://www.nvde.nl/wp-content/uploads/2020/03/BH1576-6-mei_def.pdf"]
[null,null,"Greenvis (2020). Inventarisatie duurzaamheid warmtenetten, Normstelling CO2-emissie Wet collectieve Warmtevoorziening"]
[]
[null,null,"NTA8800, gebruikte tabellen:"]
[]
[]
[]
[null,null,null,null,null,null,null,null,null,null,null,"kg/kWh","kg/GJ"]
[null,null,null,null,null,null,null,null,null,null,"aardgas",0.183,{"$f":"L63/0.0036","v":50.833333333333336}]
[null,null,null,null,null,null,null,null,null,null,"AVI",0.113,{"$f":"L64/0.0036","v":31.388888888888889}]
[null,null,null,null,null,null,null,null,null,null,"Restwarmte",3.4000000000000002E-2,9.4444444444444446]
[]
[]
[]
[]
[]
[]
[]
[]
[]
[]
[]
[]
[]
[]
[]
[]
[]
[]
[]
[]
[]
[null,null,"HaskoningDHV (2020):"]
[]
[]
[]
[]
[]
[]
[]
[]
[]
[]
[]
[]
[]
[]
[]
[]
[]
[]
[]
[]
[]
[]
[]
[]
[]
[]
[]
[]
[]
[]
[null,null,"CE Delft (2016):"]
[]
[]
[]
[]
[]
[]
[]
[]
[]
[]
[]
[]
[]
[]
[]
[]
[]
[]
[]
[]
[null,null,"Greenvis (2020):"]